[Event "III Menorca Open-A 2024"]
[Site "Ciutadella Menorca"]
[Date "2024.04.04"]
[Round "4.16"]
[White "Yuffa, Daniil"]
[Black "Koelle, Tobias"]
[Result "1/2-1/2"]
[ECO "A23"]
[WhiteElo "2606"]
[BlackElo "2467"]
[Annotator "TA"]
[PlyCount "95"]
[EventDate "2024.04.02"]
[EventType "swiss"]
[EventCountry "ESP"]
[SourceTitle "playchess.com"]
[Source "ChessBase"]
[SourceQuality "1"]
[TimeControl "5400+30"]

{[%evp 12,95,31,29,46,46,54,64,67,0,-5,0,57,42,43,30,52,33,31,24,48,25,41,19,47,35,89,79,80,48,50,54,38,43,69,67,70,0,27,0,31,16,165,161,139,81,63,81,79,7,131,96,91,25,27,24,34,0,17,39,25,12,20,23,35,10,9,6,7,13,10,14,11,10,8,7,8,16,24,0,0,0,0,0,0,0]} 1. c4 {[%emt 0:02:50]} e5 {[%emt 0:00:10]} 2. g3 {[%emt 0:00:04]} c6 {[%emt 0:00:07]} 3. Nf3 {[%emt 0:00:03]} e4 {[%emt 0:00:10]} 4. Nd4 {[%emt 0:00:05][%cal Bf3d4,Bd4b3,Bb3d2][%mdl 32]} d5 {[%emt 0:00:06]} 5. cxd5 {[%emt 0:00:06]} Nf6 {[%emt 0:00:12]} 6. Nc3 {[%emt 0:04:01]} Qb6 {[%emt 0:00:59]} 7. Nb3 {[%emt 0:01:49]} a5 {[%emt 0:00:11][%cal Ba7a5,Ba5a4][%mdl 32] ...a4 would now be deadly.} 8. d3 $1 {[%emt 0:05:06]} a4 {[%emt 0:00:09]} 9. Nd2 {[%emt 0:04:11]} exd3 {[%emt 0:01:23] White is slightly better.} 10. Bg2 {[%emt 0:00:53]} (10. Nc4 $1 $14 Qa6 11. Qxd3 Nxd5 12. e4) 10... cxd5 $11 {[%emt 0:11:30]} 11. O-O {[%emt 0:01:16]} Be6 {[%emt 0:13:22]} (11... Bg4 $11 12. h3 dxe2 13. Nxe2 Be6) 12. exd3 {[%emt 0:01:30]} (12. Nxa4 $2 Qa6 13. Nc3 d4 14. exd3 dxc3 15. bxc3 Qxd3 16. Bxb7 Ra7 $19 (16... Rxa2 17. Rxa2 Bxa2 18. Qa4+ Qd7 19. Qa8 $14) (16... Qxc3 17. Bxa8 Qxa1 18. Qa4+ Nfd7 19. Nb3 $15)) 12... Bb4 {[%emt 0:03:48]} 13. a3 {[%emt 0:10:28]} Bxc3 {[%emt 0:02:55]} 14. bxc3 {[%emt 0:00:03]} O-O {[%emt 0:00:17]} 15. Nf3 {[%emt 0:17:36]} Nc6 {[%emt 0:03:06] Repels Nd4} 16. Be3 {[%emt 0:08:03]} Qa5 {[%emt 0:07:46]} 17. Qd2 {[%emt 0:04:18]} Nd7 {[%emt 0:04:14][%cal Bf6d7,Bd7c5,Bc5b3][%mdl 32]} 18. Nd4 {[%emt 0:10:04]} Nxd4 {[%emt 0:09:19]} ({Black should try} 18... Nc5 $14) 19. Bxd4 $16 {[%emt 0:00:17]} Rac8 {[%emt 0:01:35]} 20. Rab1 {[%emt 0:05:52]} Nc5 {[%emt 0:02:02]} 21. Qe3 {[%emt 0:00:22]} Qc7 {[%emt 0:03:50]} (21... Nb3 $2 22. Rxb3 axb3 23. Qe5 $18) 22. Rb4 {[%emt 0:04:09]} Nb3 {[%emt 0:03:13]} 23. Be5 {[%emt 0:02:27] A strong pair of Bishops.} Qd7 {[%emt 0:02:11] [#]} 24. c4 {[%emt 0:03:15] White has more active pieces.} f6 {[%emt 0:03:46]} 25. Bb2 {[%emt 0:00:08][%cal Ob4b7]} Rfe8 {[%emt 0:00:40]} 26. Qa7 {[%emt 0:02:30][%csl LRa4,LRb7]} Rc7 {[%emt 0:04:13]} (26... Ra8 $11 27. Qxb7 Qxb7 28. Rxb7 dxc4) 27. cxd5 $18 {[%emt 0:01:06]} (27. Qxa4 Qxa4 28. Rxa4 dxc4 29. dxc4 Rd8) 27... Bf7 {[%emt 0:03:13]} 28. Qxa4 {[%emt 0:06:36]} (28. Rb6 $142 $1 {And now d6 would win.} Rf8 (28... Bxd5 $2 29. Bxd5+ Kh8 30. Rxb7 $18) 29. d6) 28... Qxa4 $16 {[%emt 0:00:11]} 29. Rxa4 {[%emt 0:00:03]} Rc2 {[%emt 0:00:49] [#]} 30. Ba1 {[%emt 0:00:39]} (30. Bd4 $1 $16 {[%cal Rd4b6] Black must now prevent Bb6.} Nd2 31. Ra1) 30... Rd2 {[%emt 0:03:30]} (30... Nd2 $1 $11 31. Rd1 Rec8) 31. Rb4 {[%emt 0:02:13]} Rxd3 {[%emt 0:01:21] [#]} 32. Bb2 {[%emt 0:03:11]} (32. Rxb7 Nd2 33. Rc1 Nb3 $11) (32. Be4 $1 $16 {[%cal Re4d3]} Rxe4 33. Rxe4) 32... Nd2 $11 {[%emt 0:01:08]} 33. Rc1 {[%emt 0:00:14]} Nb3 {[%emt 0:01:05]} 34. Rf1 {[%emt 0:00:01]} (34. Rb1 $5 Bg6 35. d6 $16 (35. Rxb7 Rd2 $11)) 34... Nd2 {[%emt 0:00:06] Against Be4} 35. Ra1 {[%emt 0:00:05]} Nb3 {[%emt 0:03:19] Repels Rd4} 36. Bf1 {[%emt 0:00:28]} Nxa1 {[%emt 0:00:10]} 37. Bxd3 {[%emt 0:00:02] Kf1 is the strong threat.} Bxd5 {[%emt 0:00:42][%cal Oa1c2]} 38. Bc3 {[%emt 0:00:56][%cal Ob4b5]} (38. Bxa1 Re1+ 39. Bf1 Rxa1 $17) 38... Rc8 {[%emt 0:01:23]} 39. Rd4 {[%emt 0:01:46]} Be6 {[%emt 0:01:04]} 40. Bb2 {[%emt 0:01:08][%cal Od4d6]} (40. Bxa1 Rc1+ 41. Kg2 Rxa1) 40... Nb3 {[%emt 0:01:24]} 41. Rd6 {[%emt 0:00:02]} Nc5 {[%emt 0:00:50]} 42. Bc2 {[%emt 0:00:11]} Kf7 {[%emt 0:01:08]} 43. h4 {[%emt 0:00:16]} (43. Bxh7 $2 {loses.} Na4 44. Be4 (44. Bd4 $2 Ke7 $19) 44... Nxb2 $19) 43... Ke7 {[%emt 0:00:20]} 44. Rd2 {[%emt 0:00:13]} h6 {[%emt 0:01:18]} 45. Bc3 {[%emt 0:00:22]} Nb3 {[%emt 0:01:11] The position is equal.} 46. Bb4+ {[%emt 0:01:45]} Kf7 {[%emt 0:00:01]} 47. Bxb3 {[%emt 0:00:23]} Bxb3 {[%emt 0:00:02]} 48. f3 {[%emt 0:00:12] Weighted Error Value: White=0.18 (very precise) /Black=0.17 (very precise) .  Mistake:       	White=5     	Black=4      Inaccurate:     	White=2     	Black=3      OK:         	White=14    	Black=17     Best:        	White=3     	Black=5      Strong:       	White=1     	---} 1/2-1/2

[Event "III Menorca Open-A 2024"]
[Site "Ciutadella Menorca"]
[Date "2024.04.04"]
[Round "4.17"]
[White "Bilych, Olexiy"]
[Black "Albornoz Cabrera, Carlos Daniel"]
[Result "1/2-1/2"]
[ECO "B90"]
[WhiteElo "2451"]
[BlackElo "2603"]
[Annotator "TA"]
[PlyCount "73"]
[EventDate "2024.04.02"]
[EventType "swiss"]
[EventCountry "ESP"]
[SourceTitle "playchess.com"]
[Source "ChessBase"]
[SourceQuality "1"]
[TimeControl "5400+30"]

{[%evp 20,73,6,12,14,0,10,0,20,12,19,16,23,24,14,27,22,12,20,20,20,15,48,-2,30,14,14,16,15,6,8,11,10,10,13,-14,0,0,0,0,0,-33,-25,-52,-4,-20,-6,-13,0,0,0,0,0,-4,0,0]} 1. e4 {[%emt 0:03:17]} c5 {[%emt 0:00:02]} 2. Nf3 {[%emt 0:00:08]} d6 {[%emt 0:00:03]} 3. d4 {[%emt 0:00:09]} cxd4 {[%emt 0:00:04]} 4. Nxd4 {[%emt 0:00:04]} Nf6 {[%emt 0:00:05]} 5. Nc3 {[%emt 0:00:08]} a6 {[%emt 0:00:02]} 6. Be3 {[%emt 0:00:54]} e5 {[%emt 0:00:25]} 7. Nf3 {[%emt 0:00:06]} Be7 {[%emt 0:00:45]} 8. Bc4 {[%emt 0:00:42]} O-O {[%emt 0:02:42]} 9. O-O {[%emt 0:01:33]} Nc6 {[%emt 0:01:10]} 10. Bg5 {[%emt 0:01:37]} Be6 {[%emt 0:01:30]} 11. Bb3 {[%emt 0:00:06]} Nd7 {[%emt 0:02:47]} 12. Bxe7 {[%emt 0:01:41]} Qxe7 {[%emt 0:00:05]} 13. Nd5 {[%emt 0:02:44]} Qd8 {[%emt 0:00:09]} 14. Qe2 {[%emt 0:05:00]} Na5 {[%emt 0:07:45]} 15. Rad1 {[%emt 0:04:08]} Rc8 {[%emt 0:05:22]} 16. Ne3 {[%emt 0:06:55] [#] aiming for Bxe6.} Nxb3 {[%emt 0:00:44]} 17. axb3 {[%emt 0:00:08]} Rc6 {[%emt 0:03:28]} 18. Rd2 {[%emt 0:03:35]} Qe7 {[%emt 0:13:35]} 19. Rfd1 {[%emt 0:08:20]} Nf6 {[%emt 0:05:20]} 20. Ng5 {[%emt 0:00:25]} b5 {[%emt 0:03:45]} 21. c4 {[%emt 0:11:57]} (21. Nxe6 $14 fxe6 22. Qd3) 21... Rb8 {[%emt 0:07:44]} 22. cxb5 {[%emt 0:08:44]} axb5 {[%emt 0:00:39]} 23. Nxe6 {[%emt 0:00:05]} fxe6 {[%emt 0:00:13]} 24. Ng4 {[%emt 0:00:22]} Nd7 {[%emt 0:06:23]} 25. b4 {[%emt 0:00:30]} h5 {[%emt 0:01:01]} 26. Ne3 {[%emt 0:00:06]} Nf6 {[%emt 0:00:07]} 27. Nc2 {[%emt 0:10:09]} d5 {[%emt 0:04:57]} 28. exd5 {[%emt 0:00:53]} exd5 {[%emt 0:00:04]} 29. Nd4 {[%emt 0:05:58]} Rcc8 {[%emt 0:03:21]} 30. Nxb5 {[%emt 0:00:16]} Qxb4 {[%emt 0:00:50]} 31. Na3 {[%emt 0:00:04][%cal Bb5a3,Ba3c2,Bc2e1,Be1f3][%mdl 32]} d4 {[%emt 0:06:29]} (31... Qf4 $15) 32. h3 {[%emt 0:00:48] The position is equal.} (32. Qxe5 $2 {perishes.} Qxd2 33. Rf1 Re8 $19 (33... Qxb2 $2 34. Nc4 $19)) 32... Rc5 {[%emt 0:01:13]} 33. Nc2 {[%emt 0:01:04]} Qb5 {[%emt 0:02:35]} ({But not} 33... Qxb2 34. Nxd4 Qb6 35. Nf5 $16) 34. Ne1 {[%emt 0:00:10]} Qxe2 {[%emt 0:03:36]} 35. Rxe2 {[%emt 0:00:04]} Rcb5 {[%emt 0:00:15]} 36. Nf3 {[%emt 0:00:47]} Nd7 {[%emt 0:01:38]} (36... Rxb2 37. Rxe5 Rb1 38. Ree1 Rxd1 39. Rxd1 $16) 37. Rde1 {[%emt 0:01:43] Weighted Error Value: White=0.09 (flawless) /Black=0.09 (flawless) .  Mistake:       	White=1     	Black=1      Inaccurate:     	White=3     	Black=2      OK:         	White=13    	Black=11} 1/2-1/2

[Event "III Menorca Open-A 2024"]
[Site "Ciutadella Menorca"]
[Date "2024.04.04"]
[Round "4.18"]
[White "Pranav Vijay"]
[Black "Seemann, Jakub"]
[Result "0-1"]
[ECO "B90"]
[WhiteElo "2252"]
[BlackElo "2465"]
[Annotator "TA"]
[PlyCount "84"]
[EventDate "2024.04.02"]
[EventType "swiss"]
[EventCountry "ESP"]
[SourceTitle "playchess.com"]
[Source "ChessBase"]
[SourceQuality "1"]
[TimeControl "5400+30"]

{[%evp 11,84,22,39,-2,4,-15,0,0,0,0,0,0,0,-38,-16,-35,-42,-32,-37,-60,0,0,0,0,0,-13,0,-12,-15,-16,-24,-68,-71,-86,-98,-94,-10,-159,-130,-137,-172,-206,-138,-316,-304,-593,-330,-322,-322,-331,-331,-393,-420,-438,-420,-424,-409,-684,-640,-781,-755,-5057,-5065,-1411,-1093,-12793,-12796,-5451,-5422,-1705,-1697,-1697,-1510,-29992,-29993]} 1. e4 {[%emt 0:00:05]} c5 {[%emt 0:01:51]} 2. Nf3 {[%emt 0:00:07]} d6 {[%emt 0:00:03]} 3. d4 {[%emt 0:00:09]} cxd4 4. Nxd4 {[%emt 0:00:09]} Nf6 {[%emt 0:00:14]} 5. Nc3 {[%emt 0:00:09]} a6 {[%emt 0:00:03]} 6. h3 {[%emt 0:01:43]} e5 {[%emt 0:00:22]} 7. Nf3 {[%emt 0:00:07]} Be7 {[%emt 0:08:10]} 8. Be3 {[%emt 0:00:30]} Qc7 {[%emt 0:01:10]} 9. g4 {[%emt 0:11:55] Strongly threatening g5. The position is equal.} h6 {[%emt 0:02:09]} 10. Rg1 {[%emt 0:00:12]} Nbd7 {[%emt 0:04:07]} 11. a4 {[%emt 0:09:35]} Nc5 {[%emt 0:03:14]} 12. Nd5 {[%emt 0:14:41]} Nxd5 {[%emt 0:11:15]} 13. exd5 {[%emt 0:00:11]} Bd7 {[%emt 0:00:59]} 14. c3 {[%emt 0:05:33]} e4 {[%emt 0:12:03]} 15. Nd4 {[%emt 0:05:43]} Bg5 {[%emt 0:03:31]} (15... O-O $1 $15) 16. Bxg5 $11 {[%emt 0:07:18]} hxg5 {[%emt 0:00:27]} 17. Rg3 {[%emt 0:00:14]} (17. b4 Nd3+ 18. Kd2 Nf4 $15 (18... Nxf2 $2 19. Qe1 $16)) 17... O-O {[%emt 0:03:35]} 18. a5 {[%emt 0:05:11]} Rae8 {[%emt 0:08:21]} 19. Re3 {[%emt 0:03:03]} Re5 {[%emt 0:04:26]} 20. c4 {[%emt 0:00:56] [#]} (20. b4 Nd3+ 21. Kd2 Rc8 $17 (21... Rxd5 22. Bxd3 exd3 23. Rxd3 $15) (21... Nxf2 22. Qe1 $15)) 20... b5 $1 {[%emt 0:05:22]} 21. cxb5 {[%emt 0:06:28]} (21. axb6 Qxb6) 21... axb5 {[%emt 0:01:01]} 22. Nxb5 {[%emt 0:00:53]} Qb8 $36 {[%emt 0:05:16][%mdl 2048] White is under strong pressure.} 23. Na3 {[%emt 0:05:30]} Qa8 {[%emt 0:06:51]} (23... Qxb2 $2 24. Rb1 Ba4 (24... Qa2 $2 25. Bc4 $18) 25. Rxb2 $18) (23... Qb7 $17 24. a6 Nxa6 (24... Qxd5 $2 25. Qxd5 Rxd5 26. a7 $18) 25. Bxa6 Qxa6) 24. Bc4 {[%emt 0:10:28]} (24. Nc4 $1 $11 {keeps the balance.} Rxd5 25. Qb1) 24... Qxa5+ $17 {[%emt 0:00:27]} 25. Qd2 {[%emt 0:00:05]} Qb6 {[%emt 0:00:54] Black is much more active.} 26. b4 {[%emt 0:04:24]} Nd3+ {[%emt 0:00:21]} 27. Bxd3 $2 {[%emt 0:02:43] Now White is beyond hope.} (27. Kf1 $17) 27... exd3 $19 {[%emt 0:00:01]} 28. Rxe5 $2 {[%emt 0:02:41]} (28. Rc1 {was called for.}) 28... dxe5 {[%emt 0:00:03]} 29. Qxd3 {[%emt 0:00:39]} Qxb4+ {[%emt 0:00:22]} 30. Kf1 {[%emt 0:00:03]} Ra8 {[%emt 0:00:57] And now ...Qb2 would win.} 31. Kg2 {[%emt 0:03:24]} Qb2 {[%emt 0:00:11] Prevents Nc2} 32. Rb1 {[%emt 0:00:15]} Rxa3 {[%emt 0:00:05]} (32... Qxa3 $2 {perishes.} 33. Rb8+ $18) 33. Qe4 {[%emt 0:00:04]} Re3 {[%emt 0:01:07]} ({Stronger than} 33... Ra4 34. Qxa4 Qxb1 35. Qxd7 Qe4+ 36. Kh2 $11) 34. Qxe3 {[%emt 0:01:30]} (34. Rxb2 $142 Rxe4 35. Rb8+ Kh7 36. Rb7) 34... Qxb1 {[%emt 0:00:04]} 35. Qxe5 {[%emt 0:00:03]} f6 {[%emt 0:01:37]} 36. Qe7 {[%emt 0:00:37]} Bb5 {[%emt 0:00:06] [#] ( -> ...Qf1+)} 37. Qe6+ {[%emt 0:00:50]} Kh7 {[%emt 0:00:04]} 38. Kh2 {[%emt 0:00:46]} Bd3 {[%emt 0:01:20]} 39. f3 {[%emt 0:00:33]} Qc2+ {[%emt 0:00:06]} 40. Kg3 {[%emt 0:00:03]} Qc1 {[%emt 0:01:12]} 41. Kf2 {[%emt 0:00:36] Against Qg1+} Qd2+ {[%emt 0:00:17]} 42. Kg3 {[%emt 0:00:08]} Bf1 {[%emt 0:00:08] Weighted Error Value: White=0.69/Black=0.16 (very precise) .  Loses game:     	White=1     	---        Mistake:       	White=3     	Black=2      Inaccurate:     	White=2     	Black=1      OK:         	White=9     	Black=16     Best:        	White=3     	Black=3} 0-1

[Event "III Menorca Open-A 2024"]
[Site "Ciutadella Menorca"]
[Date "2024.04.04"]
[Round "4.19"]
[White "Jumabayev, Rinat"]
[Black "Agmanov, Zhandos"]
[Result "0-1"]
[ECO "B86"]
[WhiteElo "2598"]
[BlackElo "2458"]
[Annotator "TA"]
[PlyCount "76"]
[EventDate "2024.04.02"]
[EventType "swiss"]
[EventCountry "ESP"]
[SourceTitle "playchess.com"]
[Source "ChessBase"]
[SourceQuality "1"]
[TimeControl "5400+30"]

{[%evp 15,76,0,0,0,0,-25,34,-8,47,39,83,-68,-59,-62,52,64,72,86,76,-41,-57,-47,-37,-42,-29,-82,-71,-224,-232,-208,-231,-218,-214,-518,-199,-169,-151,-143,-82,-116,-115,-79,-104,-112,-78,-199,-144,-142,-152,-208,-198,-335,-329,-370,-320,-699,-668,-790,-685,-610,-612,-823,-815]} 1. e4 {[%emt 0:00:54]} c5 {[%emt 0:08:22]} 2. Nf3 {[%emt 0:00:12]} d6 {[%emt 0:00:20]} 3. Nc3 {[%emt 0:05:14]} Nf6 {[%emt 0:00:39]} 4. d4 {[%emt 0:00:06]} cxd4 {[%emt 0:00:13]} 5. Nxd4 {[%emt 0:00:02]} a6 {[%emt 0:00:35]} 6. Bc4 {[%emt 0:04:41]} e6 {[%emt 0:01:02]} 7. Be3 {[%emt 0:00:13]} b5 {[%emt 0:06:27]} 8. Bb3 {[%emt 0:08:03]} Be7 {[%emt 0:00:33]} 9. Qf3 {[%emt 0:04:53][%cal Oe4e5] And now e5! would win.} Qc7 {[%emt 0:00:22]} 10. O-O-O {[%emt 0:04:24][%cal Oe4e5]} b4 {[%emt 0:23:31]} (10... Nbd7 $11) 11. Na4 {[%emt 0:08:46][%cal Oe4e5] aiming for e5! White is slightly better.} Bb7 {[%emt 0:11:35] [#]} (11... Nbd7 $11) 12. Nb6 $1 $14 {[%emt 0:11:33][%cal Of3g3]} Ra7 {[%emt 0:00:55][%cal Oe8g8] [#]} (12... Qxb6 $2 13. Nxe6 Qa5 14. Nxg7+ Kd7 15. Qf4 $18 (15. Bxf7 Kc7 $16)) (12... O-O 13. Nxa8) 13. Bxe6 $2 {[%emt 0:29:07]} Bxe4 $1 $15 {[%emt 0:03:18]} (13... Qxb6 14. Nf5 Qb5 15. Nxg7+ (15. Bxa7 fxe6 16. Nxd6+ Bxd6 $16) 15... Kf8 16. Nf5 (16. Bxa7 Bxe4 17. Qe3 Kxg7 $15) 16... fxe6 (16... Bxe4 $2 17. Nxd6 Qh5 18. Qxh5 $18) 17. Nxd6 $16) 14. Qe2 {[%emt 0:00:09]} fxe6 {[%emt 0:06:49]} ({Better is} 14... Qxb6 $15 15. f3 (15. Nf5 Qb7 $17) 15... Qb7 (15... fxe6 16. Nxe6 Qa5 17. Bxa7 $11)) 15. Nxe6 $14 {[%emt 0:00:01]} Qc6 {[%emt 0:00:52]} 16. f3 $1 {[%emt 0:00:04][%mdl 1024] White has strong compensation.} (16. Nxg7+ $2 Kf7 17. Nh5 Rc7 $19 (17... Bxg2 18. Nxf6 Bf3 19. Qd3 $11) (17... Qxc2+ $2 18. Qxc2 Bxc2 19. Kxc2 $17)) 16... Bg6 {[%emt 0:02:13]} 17. Bd4 {[%emt 0:00:14]} (17. Nc4 $1 $16 Rd7 18. Bf4) 17... Kf7 $15 {[%emt 0:14:06] ...Re8 would now be deadly.} 18. Ng5+ {[%emt 0:00:59]} Kf8 $1 {[%emt 0:01:21]} 19. Rhe1 {[%emt 0:02:23][%cal Ob6c8]} h6 {[%emt 0:00:46]} (19... Rb7 $5) 20. Ne6+ {[%emt 0:03:19]} (20. Nc8 $11 Qxc8 21. Bxa7) 20... Kg8 $1 $17 {[%emt 0:03:13]} 21. Nd5 $2 {[%emt 0:07:38] [#]} Nxd5 $1 $19 {[%emt 0:04:25]} 22. Bxa7 {[%emt 0:00:01][%cal Oc1b1] [#]} Kh7 $1 {[%emt 0:00:52] White must now prevent ...Rc8.} 23. f4 {[%emt 0:08:13]} Rc8 {[%emt 0:03:05]} 24. Nd4 {[%emt 0:00:22]} (24. f5 {nothing else works.} Bh5 (24... Bxf5 $2 25. Nd4 $19) 25. g4) 24... Qb7 $2 {[%emt 0:03:25]} (24... Qa4 25. Kb1 Nc6 (25... Nxf4 26. Qxe7 Rxc2 27. Nxc2 $16)) 25. Bxb8 {[%emt 0:00:13]} Rxb8 {[%emt 0:00:26]} 26. Qf3 {[%emt 0:00:48]} Nf6 {[%emt 0:03:10]} (26... Bh4 $142 27. Rf1 Rc8) 27. f5 {[%emt 0:00:44]} Bh5 {[%emt 0:00:09]} 28. Qxb7 {[%emt 0:00:32]} Rxb7 {[%emt 0:00:03]} 29. Rd3 {[%emt 0:00:22]} Ng4 {[%emt 0:00:11][%cal Oe7h4] Strongly threatening ...Bh4!} 30. Nc6 {[%emt 0:00:30]} (30. Nf3 $17) 30... Bg5+ {[%emt 0:01:09]} (30... Bh4 $19 31. Re6 Rb5 (31... Nxh2 32. Rh3 $15) 32. Rexd6 Bg5+ (32... Rxf5 $2 33. b3 $19) (32... Nxh2 33. R3d5 $17) 33. Kb1 Rxf5) 31. Kb1 $17 {[%emt 0:00:01] [#]} Rb6 $1 $36 {[%emt 0:00:09][%mdl 2048] Black is really pushing.} (31... Nxh2 32. Rh3 Bg4 33. Rxh2 Bxf5 34. Nd4 $11) 32. Rxd6 {[%emt 0:00:46]} (32. Nd4 $17) 32... Ne3 $1 $19 {[%emt 0:00:14]} (32... Nxh2 33. Ree6) 33. h4 {[%emt 0:01:00]} (33. Re6 $142 Nxg2 34. Nd4) 33... Nxf5 {[%emt 0:01:10]} (33... Nxg2 34. hxg5 hxg5 (34... Nxe1 35. g6+ Bxg6 36. fxg6+ Kh8 37. Rd8#) 35. Re5 $18 (35. Re7 Nh4 $18)) 34. Rde6 {[%emt 0:00:27]} Nxh4 {[%emt 0:01:12]} 35. g3 $2 {[%emt 0:00:33]} (35. Nd4 Rxe6 (35... Nxg2 $2 36. Rxb6 Nxe1 37. Ne6 $19) 36. Nxe6 Nxg2 37. Re5) 35... Nf3 {[%emt 0:00:20] Black is clearly winning.} 36. Rh1 {[%emt 0:00:32]} Bg4 {[%emt 0:00:23]} 37. Rd6 {[%emt 0:00:06]} Nd2+ {[%emt 0:00:10]} 38. Ka1 {[%emt 0:00:01]} Bf3 {[%emt 0:00:08][%csl LRc6,LRh1] Weighted Error Value: White=0.83/Black=0.34.  Mistake:       	White=9     	Black=6      Inaccurate:     	White=2     	Black=2      OK:         	White=8     	Black=7      Best:        	White=3     	Black=3      Strong:       	White=1     	Black=6} 0-1

[Event "III Menorca Open-A 2024"]
[Site "Ciutadella Menorca"]
[Date "2024.04.04"]
[Round "4.20"]
[White "Sanal, Vahap"]
[Black "Makkar, Rajat"]
[Result "0-1"]
[ECO "C50"]
[WhiteElo "2565"]
[BlackElo "2452"]
[Annotator "TA"]
[PlyCount "74"]
[EventDate "2024.04.02"]
[EventType "swiss"]
[EventCountry "ESP"]
[SourceTitle "playchess.com"]
[Source "ChessBase"]
[SourceQuality "1"]
[TimeControl "5400+30"]

{[%evp 10,74,10,0,14,6,9,-6,-2,0,-7,-17,-8,-33,-32,-34,-25,-37,-22,-15,0,-27,-30,-43,-29,-23,-24,-45,-40,-104,-100,-142,-142,-164,-137,-169,-175,-192,-116,-293,-197,-197,-197,-179,-143,-148,-141,-148,-153,-159,-167,-258,-250,-280,-281,-300,-297,-287,-286,-313,-330,-331,-336,-341,-343,-490,-435]} 1. e4 {[%emt 0:09:27]} e5 {[%emt 0:00:16]} 2. Nf3 {[%emt 0:00:09]} Nc6 {[%emt 0:00:14]} 3. Bc4 {[%emt 0:00:20]} Nf6 {[%emt 0:00:59]} 4. d3 {[%emt 0:00:20]} Bc5 {[%emt 0:00:13]} 5. Nc3 {[%emt 0:00:26]} h6 {[%emt 0:01:52]} 6. h3 {[%emt 0:00:30]} a6 {[%emt 0:02:54]} 7. a4 {[%emt 0:01:19]} d6 {[%emt 0:00:42]} 8. Be3 {[%emt 0:05:48]} Bxe3 {[%emt 0:04:10] The position is equal.} 9. fxe3 {[%emt 0:00:08]} Be6 {[%emt 0:00:45]} 10. Nd5 {[%emt 0:03:52]} Bxd5 {[%emt 0:06:26]} 11. exd5 {[%emt 0:00:39]} Ne7 {[%emt 0:00:49]} 12. e4 {[%emt 0:00:20]} Ng6 {[%emt 0:02:04]} 13. O-O {[%emt 0:04:16]} O-O {[%emt 0:01:47]} 14. Nd2 {[%emt 0:02:28]} Nh7 {[%emt 0:12:37]} 15. g3 {[%emt 0:17:37]} Qd7 {[%emt 0:17:38]} 16. Kg2 {[%emt 0:08:26]} Ne7 {[%emt 0:03:31]} 17. Qe2 {[%emt 0:05:55]} Ng5 {[%emt 0:01:43]} 18. Rh1 {[%emt 0:00:11]} (18. Qh5 {is interesting.} f5 19. c3 f4 20. Qg4) 18... f5 {[%emt 0:01:39]} 19. h4 {[%emt 0:00:49]} (19. Bb3 $15) 19... Nh7 $17 {[%emt 0:01:27]} 20. d4 {[%emt 0:08:24]} exd4 {[%emt 0:02:18]} 21. e5 {[%emt 0:00:13]} f4 {[%emt 0:02:23]} 22. e6 {[%emt 0:10:55]} Qe8 {[%emt 0:01:03]} 23. Raf1 {[%emt 0:06:07]} Qg6 {[%emt 0:08:05]} (23... Rf5 $19 {...Nf6 is the strong threat.} 24. Rxf4 Rxf4 25. gxf4 Nf6 (25... Qxa4 26. b3 $17)) 24. Rh3 $2 {[%emt 0:00:21] Now White is beyond hope.} (24. Rf3 $17 {was necessary.}) 24... Nf6 {[%emt 0:05:29]} 25. Bd3 {[%emt 0:02:22]} Qh5 {[%emt 0:00:51] Threatens to win with ...Qxe2+.} 26. Rxf4 {[%emt 0:04:18]} Qxd5+ {[%emt 0:01:52]} 27. Kg1 {[%emt 0:00:28]} Qe5 {[%emt 0:02:53]} 28. Rh2 {[%emt 0:01:05] [#]} Ned5 $1 {[%emt 0:04:07]} 29. Qxe5 {[%emt 0:02:51]} dxe5 {[%emt 0:00:03]} 30. Rf5 {[%emt 0:00:19]} (30. Rf3 $142) 30... Ng4 $19 {[%emt 0:02:54]} 31. Re2 {[%emt 0:00:09] [#]} Nde3 {[%emt 0:00:18] Repels Nc4. Excellent horsemanship.} 32. Rxf8+ {[%emt 0:00:18]} Kxf8 {[%emt 0:00:43]} 33. Be4 {[%emt 0:00:42]} Rb8 {[%emt 0:05:02]} 34. c3 {[%emt 0:00:17]} c5 {[%emt 0:00:57]} 35. Bf3 {[%emt 0:00:59]} Ke7 {[%emt 0:01:06]} 36. Ne4 {[%emt 0:01:54]} b6 {[%emt 0:01:00]} ({Weaker is} 36... Kxe6 37. Nxc5+ Kd6 38. Nxb7+ Kc7 39. Nc5 $11) 37. a5 {[%emt 0:00:10]} (37. Re1 $142) 37... Nf6 {[%emt 0:00:13] Weighted Error Value: White=0.31/Black=0.13 (very precise) .  Loses game:     	White=1     	---        Mistake:       	White=3     	Black=1      Inaccurate:     	White=2     	Black=1      OK:         	White=6     	Black=18     Best:        	White=1     	Black=1} ({Less strong is} 37... Kxe6 38. axb6 Rxb6 39. Nxc5+ Kd6 40. Ne4+ Kc7 41. cxd4 exd4 42. Nc5 $17) (37... bxa5 38. Bxg4 Nxg4 39. Nxc5 $19) 0-1